bitfinex/quotes_ETHUSD_20210701
["timestamp","ask_amount","ask_price","bid_price","bid_amount"]
[1625111792317,0.15427415,2191.4,2190.3,0.13361891]
[1625111792416,5.01,2191.3,2190.3,0.13361891]
[1625111792519,6.14204471,2191.2,2190.3,0.13361891]
[1625111792616,6.14204471,2191.2,2190.1,0.27363347]
[1625111792719,6.25702696,2191.2,2190.1,0.27363347]
[1625111792815,5.01,2191.0,2190.1,0.27363347]
[1625111792919,8.22887251,2191.0,2190.1,0.27363347]
[1625111793017,0.12540106,2190.9,2190.1,0.27363347]
[1625111793119,12.78695812,2190.9,2190.1,0.27363347]
[1625111793216,12.78695812,2190.9,2190.1,0.13363347]
[1625111793320,12.78695812,2190.9,2190.0,0.13363449]
[1625111793545,16.20955812,2190.9,2189.8,0.14]
[1625111793747,3.4226,2190.9,2189.8,0.14]
[1625111793843,9.297412,2190.9,2189.8,0.14]
[1625111794247,17.297412,2190.9,2189.8,0.14]
[1625111794345,17.297412,2190.9,2189.8,0.27370506]
[1625111794648,6.8452,2190.7,2189.8,0.27370506]
[1625111794846,6.8452,2190.7,2189.8,0.14]
[1625111795048,9.30849082,2190.9,2189.8,0.14]
[1625111795148,9.297412,2190.9,2189.8,0.27369598]
[1625111795247,3.4226,2190.9,2189.8,0.27369598]
[1625111795398,0.11903282,2191.0,2189.9,0.1336886]
[1625111795597,0.11903282,2191.0,2190.0,0.14]
[1625111795709,0.11903282,2191.0,2190.0,6.19856863]
[1625111795800,0.11903282,2191.0,2190.0,6.23598886]
[1625111796204,0.11903282,2191.0,2190.0,7.23598886]
[1625111796301,0.11903282,2191.0,2190.0,14.07949886]
[1625111796503,0.01466102,2191.1,2190.1,11.6]
[1625111796707,12.59539047,2191.3,2190.1,11.74]
[1625111796903,12.59539047,2191.3,2190.1,0.14]
[1625111798141,5.01,2191.1,2190.1,0.14]
[1625111798339,8.6936,2191.1,2190.1,0.14]
[1625111798441,3.6836,2191.1,2190.1,0.14]
[1625111799461,6.84453,2190.9,2190.1,0.14]
[1625111803200,6.79453,2190.9,2190.1,0.14]
[1625111805218,3.42252,2191.0,2190.1,0.14]
[1625111805423,6.8447683,2191.3,2190.1,0.2]
[1625111805521,13.95689,2191.5,2190.2,5.07114984]
[1625111805623,3.42169,2191.5,2190.2,5.07114984]
[1625111805721,3.42169,2191.5,2190.3,22.21281544]
[1625111805823,3.42169,2191.5,2190.4,0.15824854]
[1625111805923,9.8602,2191.7,2190.4,1.15824854]
[1625111806023,13.7592092,2191.8,2190.5,12.50929615]
[1625111806127,21.2822,2191.9,2190.6,0.21370755]
[1625111806323,21.2822,2191.9,2190.7,0.14]
[1625111806421,21.2822,2191.9,2190.8,0.13843155]
[1625111806621,21.2822,2191.9,2190.9,0.14]
[1625111806726,21.2822,2191.9,2191.0,0.06944375]
[1625111806824,10.6319,2191.9,2191.0,0.06944375]
[1625111806957,10.6319,2191.9,2191.1,0.14]
[1625111807156,5.95672853,2191.8,2191.1,0.14]
[1625111807259,5.95672853,2191.8,2190.7,0.02940052]
[1625111807357,3.4215,2191.6,2190.9,0.14]
[1625111807458,3.42201,2191.4,2190.9,0.14]
[1625111807565,4.41511,2191.4,2190.6,1.0]
[1625111807657,5.82520577,2191.3,2190.6,1.0]
[1625111807955,9.64791,2191.4,2190.6,1.0]
[1625111808054,9.64791,2191.4,2190.4,0.00618101]
[1625111808307,17.64791,2191.4,2190.4,0.00618101]
[1625111808508,21.0699119,2191.4,2190.4,0.00618101]
[1625111808703,5.01,2191.2,2190.4,0.00618101]
[1625111808905,9.12622,2191.1,2190.0,0.14]
[1625111809848,6.84519,2190.7,2190.0,0.14]
[1625111809952,10.56929,2190.7,2189.7,0.13368426]
[1625111810153,10.56929,2190.7,2189.5,5.83693303]
[1625111810252,3.73537985,2190.7,2189.4,13.04009892]
[1625111810352,5.01,2190.5,2189.4,10.9064]
[1625111810503,12.05410257,2190.4,2189.2,1.66621374]
[1625111810606,12.19410257,2190.4,2189.2,1.66621374]
[1625111810697,0.1,2190.3,2189.2,1.66621374]
[1625111810799,5.01,2190.2,2189.1,0.13374102]
[1625111810901,9.13149,2189.7,2189.1,0.13374102]
[1625111811008,12.22779,2189.7,2188.8,0.13376513]
[1625111811098,6.8494772,2189.6,2188.8,0.13376513]
[1625111811199,13.82852359,2189.6,2188.8,0.13376513]
[1625111811299,6.21911485,2189.5,2188.3,0.13360185]
[1625111811457,5.01,2189.4,2188.3,0.13360185]
[1625111811553,6.37092274,2189.3,2188.2,0.13361158]
[1625111811651,11.47134129,2189.3,2188.2,0.13361158]
[1625111811752,0.15415347,2189.3,2188.2,0.13361158]
[1625111811853,0.15415347,2189.3,2188.1,10.1899]
[1625111811854,5.01,2189.1,2188.1,10.1899]
[1625111811951,4.99920331,2189.1,2188.1,10.1899]
[1625111812063,0.14,2189.0,2188.1,10.1899]
[1625111812151,4.2306,2189.1,2188.1,10.1899]
[1625111812254,4.2306,2189.1,2188.1,10.1399]
[1625111812505,6.85061,2188.8,2188.1,10.1399]
[1625111812607,26.1990723,2189.1,2187.9,0.13362532]
[1625111812717,0.14,2189.0,2187.9,0.13362532]
[1625111812807,0.15819709,2189.0,2187.9,0.13362532]
[1625111812908,0.31247829,2189.0,2187.9,0.13362532]
[1625111813008,0.31247829,2189.0,2187.6,0.13363725]
[1625111813106,5.01,2188.9,2187.6,0.03363725]
[1625111813210,3.4264549,2188.6,2187.2,10.4736]
[1625111813305,5.01,2188.4,2187.2,10.4736]
[1625111813406,4.96,2188.4,2187.2,10.4736]
[1625111813819,0.9019987,2188.4,2187.1,0.40669826]
[1625111813913,7.49331479,2188.5,2187.1,0.40669826]
[1625111814013,9.13741,2188.3,2187.1,0.40669826]
[1625111814113,7.49331479,2188.5,2187.1,0.40669826]
[1625111814212,1.2168,2188.5,2187.1,22.05378211]
[1625111814314,1.2168,2188.5,2187.2,0.1]
[1625111814489,5.97646904,2188.4,2187.2,0.1]
[1625111814588,5.97646904,2188.4,2187.1,15.40665441]
[1625111814739,5.97646904,2188.4,2187.2,6.25392079]
[1625111815442,6.85216,2188.3,2187.2,6.25392079]
[1625111815642,6.85216,2188.3,2187.1,15.14]
[1625111815943,6.85216,2188.3,2187.2,6.0693534]
[1625111816141,6.85216,2188.3,2187.2,21.0693534]
[1625111816444,6.85216,2188.3,2187.2,15.0]
[1625111816711,6.85216,2188.3,2187.3,6.021417]
[1625111817117,6.85216,2188.3,2187.1,0.14]
[1625111817315,6.85216,2188.3,2187.1,11.85599225]
[1625111817412,6.85216,2188.3,2187.1,11.90558049]
[1625111817515,6.85216,2188.3,2187.2,0.06]
[1625111817716,6.85216,2188.3,2187.1,0.14]
[1625111817717,6.85289,2188.1,2187.1,0.14]
[1625111817816,15.72179,2188.1,2187.1,0.14]
[1625111817915,21.62267456,2188.1,2187.1,0.14]
[1625111818014,15.72179,2188.1,2187.1,0.14]
[1625111818523,10.71179,2188.1,2187.1,5.15]
[1625111818614,10.71179,2188.1,2187.2,6.04607998]
[1625111818716,10.71179,2188.1,2187.1,5.15]
[1625111818813,10.71179,2188.1,2187.1,0.14]
[1625111819461,3.94877777,2188.1,2187.1,0.14]
[1625111820564,9.0,2188.0,2187.1,0.14]
[1625111820667,9.0,2188.0,2187.2,0.12]
[1625111820768,9.0,2188.0,2187.4,20.0]
[1625111820865,9.0,2188.0,2187.5,7.42415636]
[1625111821571,9.0,2188.0,2187.4,0.14]
[1625111821674,9.0,2188.0,2187.4,5.15]
[1625111821773,9.0,2188.0,2187.5,5.01]
[1625111821874,9.0,2188.0,2187.6,5.01]
[1625111821973,9.0,2188.0,2187.6,5.8863121]
[1625111822069,9.0,2188.0,2187.6,5.95394271]
[1625111822171,12.8873,2188.0,2187.4,5.15]
[1625111822270,12.8873,2188.0,2187.6,5.90877339]
[1625111822474,12.8873,2188.0,2187.4,5.15]
[1625111822672,12.8873,2188.0,2187.4,0.14]
[1625111822774,12.8873,2188.0,2186.9,1.66621374]
[1625111822887,18.87980659,2188.0,2186.9,7.8307771]
[1625111822976,18.87980659,2188.0,2186.9,0.14]
[1625111822977,0.14,2187.9,2186.9,0.14]
[1625111823074,16.1745422,2188.0,2186.9,0.14]
[1625111823075,10.18203561,2188.0,2186.9,0.14]
[1625111823173,10.18203561,2188.0,2186.6,1.80621374]
[1625111823322,10.18203561,2188.0,2187.4,0.00685481]
[1625111824072,13.60920561,2188.0,2187.4,0.00685481]
[1625111824476,6.85423,2187.6,2187.4,0.00685481]
[1625111824575,1.4908,2187.7,2187.4,0.00685481]
[1625111824726,13.60920561,2188.0,2187.4,0.00685481]
[1625111825866,6.85382,2187.8,2187.4,0.00685481]
[1625111826165,10.18203561,2188.0,2187.4,0.00685481]
[1625111826968,6.85358,2187.9,2187.4,0.00685481]
[1625111827169,6.82608,2187.9,2187.4,0.00685481]
[1625111827568,11.05308,2187.9,2187.4,0.00685481]
[1625111828528,4.227,2187.9,2187.4,0.00685481]
[1625111829044,9.50993561,2188.0,2187.4,0.00685481]
[1625111829151,6.29473561,2188.0,2187.4,0.00685481]
[1625111830055,9.95663566,2187.9,2187.4,0.00685481]
[1625111830226,0.28,2187.8,2187.4,0.00685481]
[1625111831217,0.14,2187.8,2187.4,0.00685481]
[1625111831620,6.85485,2187.7,2187.4,0.00685481]
[1625111831819,6.99485,2187.7,2187.4,0.00685481]
[1625111832019,10.60735,2187.7,2187.4,0.00685481]
[1625111832670,16.54025895,2187.7,2187.4,0.00685481]
[1625111832872,5.01,2187.5,2187.4,0.00685481]
[1625111832972,0.08,2187.6,2187.4,0.00685481]
[1625111833171,10.60735,2187.7,2187.4,0.00685481]
[1625111833374,10.55735,2187.7,2187.4,0.00685481]
[1625111834577,16.68368555,2187.7,2187.4,0.00685481]
[1625111834713,0.12,2187.6,2187.4,0.00685481]
[1625111835715,10.55735,2187.7,2187.4,0.00685481]
[1625111835813,16.57122149,2187.7,2187.4,0.00685481]
[1625111836214,10.55735,2187.7,2187.4,0.00685481]
[1625111836415,0.1,2187.6,2187.4,0.00685481]
[1625111836996,10.55735,2187.7,2187.4,0.00685481]
[1625111837181,13.98517,2187.7,2187.4,0.00685481]
[1625111837680,13.97436985,2187.7,2187.4,0.00685481]
[1625111837783,5.01,2187.5,2187.4,0.00685481]
[1625111838083,2.34383926,2187.5,2187.4,0.00685481]
[1625111838183,0.04,2187.5,2187.4,0.00685481]
[1625111838384,19.97618955,2187.7,2187.4,0.00685481]
[1625111838486,13.97436985,2187.7,2187.4,0.00685481]
[1625111838884,21.97436985,2187.7,2187.4,0.00685481]
[1625111839084,0.08,2187.6,2187.4,0.00685481]
[1625111839630,7.16951985,2187.7,2187.4,0.00685481]
[1625111839732,3.55701985,2187.7,2187.4,0.00685481]
[1625111839840,3.41701985,2187.7,2187.4,4.19435481]
[1625111840034,6.85607,2187.6,2187.4,4.19435481]
[1625111841547,3.41701985,2187.7,2187.4,4.19435481]
[1625111843877,6.85335,2187.6,2187.4,4.19435481]
[1625111843964,6.85335,2187.6,2187.4,0.00685481]
[1625111844260,0.12,2187.5,2187.4,0.00685481]
[1625111844465,5.13,2187.5,2187.4,0.00685481]
[1625111844563,11.14651219,2187.5,2187.4,0.00685481]
[1625111844661,11.28651219,2187.5,2187.4,0.00685481]
[1625111844765,5.01,2187.4,2186.5,1.67621374]
[1625111844862,3.42845,2186.9,2186.5,1.67621374]
[1625111844961,3.42845,2186.9,2186.5,0.01]
[1625111846229,3.4285,2186.8,2186.5,0.01]
[1625111846424,6.85693,2186.7,2186.5,0.01]
[1625111849347,2.79646784,2186.7,2186.5,0.01]
[1625111851120,15.01968312,2186.6,2186.5,0.01]
[1625111851220,15.06015278,2186.6,2186.5,0.01]
[1625111851419,8.9338,2186.6,2186.5,0.01]
[1625111852124,3.9238,2186.6,2186.5,0.01]
[1625111852221,3.8038,2186.6,2186.5,0.01]
[1625111852322,4.11436784,2186.7,2186.5,0.01]
[1625111852421,2.93646784,2186.7,2186.5,0.01]
[1625111853268,0.2291009,2186.7,2186.5,0.01]
[1625111853977,0.0891009,2186.7,2186.5,0.01]
[1625111854472,3.4285181,2186.8,2186.5,0.01]
[1625111854575,3.42845,2186.9,2186.5,0.01]
[1625111856329,6.85684,2186.7,2186.5,0.01]
[1625111857030,6.8569984,2186.9,2186.5,0.01]
[1625111857478,10.28465,2186.9,2186.5,5.97953592]
[1625111857578,10.8196,2187.2,2186.5,20.97953592]
[1625111857680,31.1059,2187.5,2186.7,5.01]
[1625111857681,10.1705,2187.5,2186.7,5.01]
[1625111857784,3.42726,2187.8,2186.8,22.87101078]
[1625111857880,9.9953,2188.3,2186.8,22.88871938]
[1625111857975,6.29473561,2188.0,2187.0,5.01]
[1625111858074,6.29473561,2188.0,2187.1,0.18420122]
[1625111858178,6.29473561,2188.0,2187.1,7.23035226]
[1625111858288,6.29473561,2188.0,2187.1,0.32420122]
[1625111858479,6.29473561,2188.0,2187.1,0.14]
[1625111858583,13.14769561,2188.0,2187.1,0.14]
[1625111858881,0.1,2187.9,2187.1,0.0001]
[1625111858989,3.4273153,2187.8,2186.7,0.19756711]
[1625111859078,0.14,2187.8,2186.5,5.87183997]
[1625111859176,0.14,2187.8,2186.5,5.88465299]
[1625111859274,0.04,2187.7,2186.5,0.01]
[1625111859524,0.14,2187.6,2186.5,0.01]
[1625111859603,6.85711,2187.1,2186.5,0.01]
[1625111859706,11.08091,2187.1,2186.5,0.01]
[1625111859811,3.42854,2186.9,2186.5,0.01]
[1625111861108,6.85687,2186.8,2186.5,0.01]
[1625111862215,10.28584,2186.8,2186.5,0.01]
[1625111863523,14.40744,2186.8,2185.7,8.00722]
[1625111863726,14.40744,2186.8,2185.7,7.00722]
[1625111863971,14.40744,2186.8,2185.8,0.06]
[1625111864168,14.40744,2186.8,2185.7,7.00722]
[1625111864268,20.42352744,2186.8,2185.7,7.00722]
[1625111864371,3.42883,2186.7,2185.7,0.15]
[1625111864468,0.01176993,2186.6,2185.7,0.15]
[1625111864571,3.42883,2186.7,2185.7,0.15]
[1625111864769,3.42883,2186.7,2185.7,1.15]
[1625111864870,3.42883,2186.7,2185.8,0.04]
[1625111865168,3.42883,2186.7,2185.7,16.15]
[1625111865268,3.42883,2186.7,2185.7,1.15]
[1625111865471,6.85778,2186.6,2185.7,1.15]
[1625111865770,6.85778,2186.6,2185.7,0.15]
[1625111867434,6.85778,2186.6,2185.7,7.00752]
[1625111867533,10.98228,2186.6,2185.7,7.00752]
[1625111868487,8.27473746,2186.6,2185.7,7.00752]
[1625111868687,14.24658556,2186.6,2185.7,0.15]
[1625111868791,14.24658556,2186.6,2185.7,0.01]
[1625111868992,22.38658556,2186.6,2185.7,0.01]
[1625111869188,0.14,2186.5,2185.4,0.91]
[1625111869388,0.14,2186.4,2185.4,0.91]
[1625111869793,6.85978,2186.0,2185.1,16.81361]
[1625111869891,6.85978,2186.0,2185.0,1.66621374]
[1625111869991,6.1366555,2185.9,2184.9,10.8259]
[1625111870090,6.1366555,2185.9,2184.9,10.6859]
[1625111870091,6.14860765,2185.9,2184.9,10.6859]
[1625111870190,6.1366555,2185.9,2184.9,10.6859]
[1625111870288,5.14438462,2186.0,2184.9,10.6859]
[1625111870392,5.90345194,2185.9,2184.9,10.6859]
[1625111870490,5.90512488,2185.9,2184.9,10.6859]
[1625111870590,5.1325,2186.0,2184.9,10.6859]
[1625111871035,13.1325,2186.0,2184.9,10.6859]
[1625111871137,5.94588411,2185.9,2184.9,10.6859]
[1625111871237,6.86062,2185.8,2184.9,10.6859]
[1625111871939,6.81062,2185.8,2184.9,10.6859]
[1625111873347,3.42989,2186.2,2185.1,5.01]
[1625111873440,3.42989,2186.2,2185.2,5.01]
[1625111873546,3.42989,2186.2,2185.2,22.4360325]
[1625111873640,3.42989,2186.2,2185.3,0.14]
[1625111874304,4.82629,2186.2,2185.1,0.14]
[1625111874404,8.38569,2186.2,2184.9,10.6859]
[1625111874506,5.95345464,2186.1,2184.9,10.6859]
[1625111874703,3.43037,2185.9,2184.9,10.6859]
[1625111875103,13.95345464,2186.1,2184.9,10.6859]
[1625111875234,8.0,2186.1,2184.9,10.6859]
[1625111875326,5.01,2185.9,2184.9,10.6859]
[1625111875625,6.86092,2185.7,2184.9,10.6859]
[1625111875728,14.05738831,2186.1,2184.9,10.6859]
[1625111875827,6.85988,2186.2,2184.9,10.6859]
[1625111875926,6.85988,2186.2,2185.0,0.18]
[1625111876227,6.85988,2186.2,2184.9,10.6859]
[1625111876526,6.01632181,2186.1,2184.9,10.6859]
[1625111877227,14.01632181,2186.1,2184.9,10.6859]
[1625111877329,6.86036,2185.9,2184.9,17.54551]
[1625111877769,6.86036,2185.9,2184.9,10.6859]
[1625111878072,6.86036,2185.9,2184.9,25.6859]
[1625111878173,6.86036,2185.9,2185.0,6.60677395]
[1625111878286,6.85988,2186.2,2185.1,5.01]
[1625111878378,3.42989,2186.2,2185.1,20.15]
[1625111878478,3.42989,2186.2,2185.1,11.96454814]
[1625111878578,3.42989,2186.2,2185.1,0.34]
[1625111878873,3.42989,2186.2,2185.1,5.35]
[1625111878972,3.42989,2186.2,2185.2,0.08]
[1625111879072,3.42989,2186.2,2185.2,6.68712171]
[1625111879172,3.42989,2186.2,2185.2,0.08]
[1625111879373,3.42989,2186.2,2185.3,0.04]
[1625111880326,3.42989,2186.2,2185.2,8.34579]
[1625111880525,3.42989,2186.2,2185.3,0.14]
[1625111880825,3.42989,2186.2,2185.3,15.14]
[1625111880925,3.42989,2186.2,2185.3,18.5767]
[1625111881127,13.45707,2186.4,2185.3,18.5767]
[1625111881328,13.45707,2186.4,2185.4,0.04]
[1625111881628,19.49982647,2186.4,2185.4,0.18]
[1625111881727,19.49982647,2186.4,2185.4,0.14]
[1625111881995,6.93097433,2186.2,2185.2,1.183]
[1625111882091,6.95813168,2186.2,2185.1,0.14]
[1625111882194,6.95813168,2186.2,2184.8,0.14]
[1625111882195,6.86105,2185.7,2184.8,0.14]
[1625111882488,6.86105,2185.7,2184.8,6.76797502]
[1625111882587,6.86105,2185.7,2184.8,0.14]
[1625111883540,8.91587144,2185.7,2184.8,0.14]
[1625111885285,3.4306506,2185.6,2184.8,0.14]
[1625111885379,3.52054848,2185.7,2184.8,0.14]
[1625111885479,3.52054848,2185.7,2184.9,25.6859]
[1625111885579,3.52054848,2185.7,2185.0,0.06]
[1625111885782,3.42054848,2185.7,2185.1,0.06]
[1625111885880,3.43053,2185.9,2185.1,0.06]
[1625111886080,3.43053,2185.9,2185.2,0.12]
[1625111887182,10.0273,2186.4,2185.3,0.14]
[1625111887284,13.45674,2186.4,2185.4,20.0]
[1625111887380,13.45674,2186.4,2185.5,21.99812795]
[1625111887483,13.45674,2186.4,2185.6,0.01965458]
[1625111887581,3.42944,2186.4,2185.6,4.78285458]
[1625111887731,3.42944,2186.4,2185.6,4.9032]
[1625111887933,3.42944,2186.4,2185.6,19.9032]
[1625111888037,3.42944,2186.4,2185.7,0.08]
[1625111888435,3.42944,2186.4,2185.8,0.04]
[1625111889335,3.42944,2186.4,2185.8,20.04]
[1625111889427,3.42838,2186.9,2185.9,5.15]
[1625111889531,3.42838,2186.9,2186.0,5.01]
[1625111889630,3.42829,2186.8,2186.1,0.07630857]
[1625111889724,10.6927,2187.2,2186.1,0.21630857]
[1625111890026,10.5927,2187.2,2186.1,0.21630857]
[1625111890226,6.85583,2187.1,2186.1,0.21630857]
[1625111890327,10.5927,2187.2,2186.1,0.21630857]
[1625111890986,10.5927,2187.2,2186.3,5.95356082]
[1625111891087,14.02058,2187.2,2186.3,0.06645582]
[1625111891185,10.5927,2187.2,2186.1,6.2082363]
[1625111891288,17.44826,2187.2,2186.3,0.14]
[1625111891688,17.44826,2187.2,2186.4,0.1]
[1625111891887,3.4283592,2187.0,2186.4,0.1]
[1625111891987,3.4283592,2187.0,2186.3,0.14]
[1625111892288,3.4283592,2187.0,2186.3,6.45634832]
[1625111892390,6.85564,2187.2,2186.4,5.01]
[1625111892786,6.85564,2187.2,2186.3,21.38135856]
[1625111892995,6.85564,2187.2,2186.5,5.96729617]
[1625111893090,10.2833985,2187.4,2186.6,15.0]
[1625111893235,3.42777,2187.4,2186.7,6.54684839]
[1625111893332,3.42777,2187.4,2186.7,6.60711736]
[1625111893531,3.42777,2187.4,2186.8,0.08]
[1625111893931,3.42777,2187.4,2186.7,6.54711736]
[1625111894338,10.0777,2187.7,2186.8,20.0]
[1625111894438,15.43488561,2188.0,2186.8,20.0]
[1625111894439,6.29473561,2188.0,2187.0,5.01]
[1625111894634,6.29473561,2188.0,2187.1,21.95715534]
[1625111894833,6.29473561,2188.0,2187.1,6.95715534]
[1625111894933,3.42689,2187.8,2187.4,4.0]
[1625111895035,6.29473561,2188.0,2187.4,7.4906]
[1625111895237,6.29473561,2188.0,2187.4,33.27518408]
[1625111895336,6.29473561,2188.0,2187.4,33.41518408]
[1625111895484,6.29473561,2188.0,2187.5,15.08]
[1625111895687,6.29473561,2188.0,2187.6,6.3000387]
[1625111895785,6.29473561,2188.0,2187.6,21.3000387]
[1625111896489,6.29473561,2188.0,2187.7,3.6]
[1625111896689,6.29473561,2188.0,2187.8,6.23170395]
[1625111896889,6.29473561,2188.0,2187.7,18.74]
[1625111897290,6.29473561,2188.0,2187.8,0.04]
[1625111897390,6.29473561,2188.0,2187.8,5.86705998]
[1625111897492,6.29473561,2188.0,2187.9,15.0]
[1625111897589,6.29473561,2188.0,2187.9,21.185097]
[1625111897742,6.29473561,2188.0,2187.9,21.225097]
[1625111897835,6.19473561,2188.0,2187.9,24.944297]
[1625111898236,6.19473561,2188.0,2187.9,24.90100794]
[1625111898333,6.85104,2188.7,2188.0,25.8]
[1625111898442,6.85104,2188.7,2188.1,6.06938753]
[1625111898538,28.4854037,2188.8,2188.1,21.02609847]
[1625111898636,6.8517437,2188.8,2188.2,0.16]
[1625111899034,6.8517437,2188.8,2188.1,21.02609847]
[1625111899135,3.42575,2188.8,2188.1,21.02609847]
[1625111899439,11.42192,2189.1,2188.1,21.02609847]
[1625111899542,30.7172913,2189.5,2188.2,0.11755557]
[1625111899638,30.5772913,2189.5,2188.4,0.04418168]
[1625111899739,30.5772913,2189.5,2188.4,21.92338489]
[1625111899837,23.7272913,2189.5,2188.4,21.92338489]
[1625111900003,3.42483,2189.3,2188.5,20.0]
[1625111900104,20.3022,2189.5,2188.6,19.96671094]
[1625111900199,9.964,2189.5,2188.6,22.25785206]
[1625111900299,9.964,2189.5,2188.7,0.14]
[1625111900399,17.18688,2189.7,2188.8,0.03062068]
[1625111900400,6.84828,2189.7,2188.8,0.03062068]
[1625111900498,6.84828,2189.7,2189.0,3.7]
[1625111901400,6.84828,2189.7,2189.1,5.80885021]
[1625111901501,3.42419,2189.9,2189.1,5.91096825]
[1625111901603,14.84126,2190.0,2189.1,5.91096825]
[1625111901703,14.84126,2190.0,2189.2,0.02575519]
[1625111901905,21.69126,2190.0,2189.2,0.02575519]
[1625111902004,6.85,2190.0,2189.2,0.02575519]
[1625111902268,6.85,2190.0,2189.3,5.02963432]
[1625111902271,6.85,2190.0,2189.4,21.45283959]
[1625111902568,6.85,2190.0,2189.4,6.45283959]
[1625111902867,6.85,2190.0,2189.2,0.14]
[1625111903570,6.84751,2189.9,2189.2,0.14]
[1625111904385,6.85,2190.0,2189.3,5.05]
[1625111904494,6.85,2190.0,2189.4,41.42206036]
[1625111904896,3.42358,2190.3,2189.4,41.42206036]
[1625111904994,3.42358,2190.3,2189.5,0.1]
[1625111905801,10.2690066,2190.5,2189.5,20.1]
[1625111905897,6.84555,2190.5,2189.7,15.0]
[1625111905998,6.84555,2190.5,2189.7,20.13]
[1625111906195,6.84555,2190.5,2189.8,35.0]
[1625111906504,6.84555,2190.5,2189.7,0.12]
[1625111906597,5.95644194,2190.4,2189.5,0.14]
[1625111906755,5.95644194,2190.4,2189.0,24.475]
[1625111906756,5.92068105,2190.0,2189.2,0.14]
[1625111906847,2.3465,2190.1,2189.2,0.14]
[1625111908048,2.3465,2190.1,2189.3,5.01]
[1625111908253,2.3465,2190.1,2189.4,15.0]
[1625111908349,2.3465,2190.1,2189.4,15.12]
[1625111908552,2.3465,2190.1,2189.4,0.12]
[1625111908749,2.3465,2190.1,2189.2,0.14]
[1625111908849,2.3465,2190.1,2189.3,5.01]
[1625111909289,2.3465,2190.1,2189.4,15.0]
[1625111910241,2.3465,2190.1,2189.3,5.01]
[1625111910339,2.3465,2190.1,2189.3,20.01]
[1625111910441,9.19317,2190.1,2189.3,20.01]
[1625111910742,6.84667,2190.1,2189.3,20.01]
[1625111914692,6.84667,2190.1,2189.3,40.01]
[1625111914794,6.84667,2190.1,2189.4,5.01]
[1625111914892,6.84667,2190.1,2189.3,20.01]
[1625111914996,6.84667,2190.1,2189.4,0.12]
[1625111915395,6.84667,2190.1,2189.3,20.01]
[1625111915596,11.38127,2190.1,2189.3,20.01]
[1625111916040,11.38127,2190.1,2189.3,5.01]
[1625111916140,5.89264075,2190.0,2189.2,0.14]
[1625111916245,5.89264075,2190.0,2189.1,20.0]
[1625111916351,5.89264075,2190.0,2188.7,2.0]
[1625111916352,5.01,2189.8,2188.7,2.0]
[1625111916443,7.08322513,2189.7,2188.6,1.66621374]
[1625111916543,5.01,2189.5,2188.6,1.66621374]
[1625111916745,0.14,2189.4,2188.6,1.66621374]
[1625111916841,6.84929,2189.2,2188.6,1.66621374]
[1625111916998,1.1323,2189.5,2188.5,20.0]
[1625111916999,1.1185,2189.3,2188.5,20.0]
[1625111917096,0.14,2189.5,2188.5,20.0]
[1625111917195,0.14,2189.8,2188.7,0.06]
[1625111917492,0.14,2189.8,2188.8,20.0]
[1625111917596,0.14,2189.8,2188.9,15.0]
[1625111917693,9.13036,2189.9,2188.9,15.0]
[1625111917800,10.9175,2190.0,2189.5,20.0]
[1625111918014,10.9175,2190.0,2189.5,35.0]
[1625111918103,3.42363,2190.3,2189.5,35.0]
[1625111918208,3.42363,2190.3,2189.6,0.1]
[1625111919127,3.42363,2190.3,2189.5,35.14]
[1625111919331,3.42363,2190.3,2189.5,15.14]
[1625111919429,10.26945,2190.3,2189.5,15.14]
[1625111919529,10.26945,2190.3,2189.5,15.0]
[1625111920434,3.42363,2190.3,2189.5,15.0]
[1625111920737,6.846,2190.2,2189.5,15.0]
[1625111922997,6.846,2190.2,2189.7,20.0]
[1625111923097,6.846,2190.2,2189.4,5.01]
[1625111923199,6.846,2190.2,2189.4,5.11]
[1625111923298,12.60890759,2190.2,2189.4,0.1]
[1625111923400,12.60890759,2190.2,2189.0,0.14]
[1625111923501,16.47370759,2190.2,2188.8,20.3468]
[1625111923603,5.01,2190.0,2188.8,26.34122114]
[1625111923700,14.32277046,2190.0,2188.8,16.03722114]
[1625111923798,23.46147046,2190.0,2188.8,16.03722114]
[1625111923901,10.45147046,2190.0,2188.8,16.03722114]
[1625111924301,10.45147046,2190.0,2188.9,15.0]
[1625111924600,3.4237923,2189.7,2188.9,15.0]
[1625111924734,6.8475523,2189.7,2188.9,15.0]
[1625111925436,6.84782,2189.5,2188.9,15.0]
[1625111925990,6.84782,2189.5,2188.8,10.1828]
[1625111926090,17.93282,2189.5,2188.8,10.0428]
[1625111926188,11.085,2189.5,2188.6,5.15]
[1625111926292,11.085,2189.5,2188.0,0.31015934]
[1625111926293,5.88211464,2189.4,2188.4,10.4137]
[1625111926389,5.88211464,2189.4,2188.1,5.97225857]
[1625111926496,6.85014,2188.8,2188.1,5.92225857]
[1625111926593,13.68743,2188.8,2188.0,20.0]
[1625111926692,6.83729,2188.8,2188.0,20.0]
[1625111926788,5.95497296,2188.7,2188.0,20.0]
[1625111927009,3.42553,2188.7,2188.0,20.0]
[1625111927212,9.45631329,2188.7,2188.0,20.0]
[1625111927313,9.45631329,2188.7,2187.1,24.71804424]
[1625111927314,3.42553,2188.5,2187.1,11.41434]
[1625111927414,3.58483377,2188.5,2187.5,0.14]
[1625111927514,12.03267693,2188.4,2187.5,0.14]
[1625111927667,0.06497897,2188.2,2187.0,5.92025219]
[1625111927762,6.85351,2187.7,2186.8,6.18680199]